[Event "Olomouc Chess Summer-IM 2022"]
[Site "Olomouc"]
[Date "2022.08.19"]
[Round "8.11"]
[White "Obsivac, Josef"]
[Black "Mica, Marek"]
[Result "1/2-1/2"]
[ECO "D37"]
[WhiteElo "2284"]
[BlackElo "2297"]
[Annotator "TA"]
[PlyCount "82"]
[EventDate "2022.08.10"]
[EventCountry "CZE"]
[SourceTitle "playchess.com"]
[Source "ChessBase"]
[SourceQuality "1"]
[TimeControl "40/5400+30:1800+30"]

{[%evp 9,82,33,55,47,52,47,55,42,54,45,58,43,61,31,32,39,51,52,55,32,27,0,30,33,28,33,31,20,64,46,92,106,110,112,114,133,161,181,173,221,230,245,247,225,231,231,237,237,216,216,214,220,210,79,79,100,89,98,74,74,71,71,71,72,73,74,74,79,96,81,159,139,137,118,168]} 1. d4 {[%emt 0:01:08]} Nf6 {[%emt 0:00:09]} 2. c4 {[%emt 0:00:05]} e6 {[%emt 0:00:09]} 3. Nf3 {[%emt 0:00:13]} d5 {[%emt 0:00:08]} 4. Nc3 {[%emt 0:00:40]} dxc4 {[%emt 0:00:27]} 5. e4 {[%emt 0:00:33][%cal Be2e4,Be4e5][%mdl 32]} b5 {[%emt 0:00:24]} 6. e5 {[%emt 0:00:46] D24: Queen's Gambit Accepted: 3 Nf3 Nf6 4 Nc3.} Nd5 {[%emt 0:00:06]} 7. Nxb5 {[%emt 0:00:13]} Nb6 {[%emt 0:00:07]} 8. Be2 {[%emt 0:01:17] White is slightly better.} Nc6 {[%emt 0:00:13]} 9. O-O {[%emt 0:01:14]} Be7 {[%emt 0:00:22]} 10. Qd2 {[%emt 0:02:44] is cutting edge theory.} Bb7 {[%emt 0:03:40]} 11. Rd1 {[%emt 0:20:04]} Qd7 {[%emt 0:02:12]} 12. Nc3 {[%emt 0:12:52]} Nb4 {[%emt 0:06:15]} 13. Qf4 {[%emt 0:02:08]} f5 {[%emt 0:14:54] [#]} 14. h4 $146 {[%emt 0:06:48]} (14. exf6 $5 gxf6 15. Ne4 $11) ({Predecessor:} 14. exf6 gxf6 15. Qh6 O-O-O 16. Bf4 Rdg8 17. Bg3 N4d5 18. a4 a5 19. Nb5 Rg6 20. Qh5 {1-0 (32) Dreev,A (2623)-Sjugirov,S (2680) Chess.com INT 2022}) 14... O-O-O {[%emt 0:03:20]} 15. b3 N4d5 {[%emt 0:14:34]} (15... Nd3 $5 {[%cal Rd3f4]} 16. Qg3 (16. Bxd3 cxd3 17. Rxd3 h6 $11) 16... Bxf3 17. Bxf3 Qxd4 $11) 16. Qd2 {[%emt 0:07:22]} Bb4 {[%emt 0:01:13]} 17. Bb2 {[%emt 0:00:06]} cxb3 {[%emt 0:00:50]} 18. axb3 {[%emt 0:00:17]} a5 {[%emt 0:00:21][%cal Og7g5]} 19. Qc1 {[%emt 0:12:42]} Qe8 {[%emt 0:21:37]} (19... h6 $14 {feels stronger.}) 20. Nb5 $16 {[%emt 0:05:25][%cal Ob5d6]} Kb8 {[%emt 0:07:04][%cal Og7g5]} 21. Ba3 {[%emt 0:02:51]} Qc6 {[%emt 0:07:46]} 22. Bc4 {[%emt 0:03:58]} h6 {[%emt 0:04:18][%cal Og7g5]} 23. Bxb4 {[%emt 0:00:36]} axb4 {[%emt 0:04:10]} 24. Na7 {[%emt 0:03:12]} Qe8 {[%emt 0:00:09]} 25. Bb5 {[%emt 0:03:05]} Nc3 {[%emt 0:03:24]} 26. Bxe8 {[%emt 0:00:23]} Ne2+ {[%emt 0:00:16]} 27. Kf1 $1 {[%emt 0:01:11]} Nxc1 {[%emt 0:00:08] [#]} 28. Nc6+ $1 {[%emt 0:02:42]} ({Weaker is} 28. Rdxc1 Rhxe8 29. h5 (29. Nc6+ Bxc6 30. Rxc6 g6 $14) 29... Re7 $16) 28... Bxc6 {[%emt 0:00:17]} 29. Bxc6 {[%emt 0:00:13]} Nxb3 {[%emt 0:00:15]} 30. Ra2 {[%emt 0:01:27]} Kc8 {[%emt 0:04:38]} 31. Rb1 {[%emt 0:05:46]} (31. h5 $18 {is more deadly.}) 31... Nxd4 {[%emt 0:01:26]} 32. Nxd4 {[%emt 0:00:02]} Rxd4 {[%emt 0:00:51] [#]} 33. Rba1 $1 {[%emt 0:00:01][%cal Oa2a8] White threatens Ra8+! and mate.} Kd8 {[%emt 0:00:37] [#] Threatens to win with ...Ke7.} 34. Ra8+ $1 {[%emt 0:00:21]} Nxa8 {[%emt 0:00:06]} 35. Rxa8+ {[%emt 0:00:04]} Ke7 {[%emt 0:00:29] ( -> ...Rxa8)} 36. Rxh8 {[%emt 0:00:07][%mdl 4096] Endgame Strongly threatening Rc8. KRB-KR} Rc4 {[%emt 0:00:39]} 37. Ba4 {[%emt 0:01:30]} Rxh4 {[%emt 0:00:41]} 38. Rg8 {[%emt 0:02:30]} Kf7 {[%emt 0:00:30]} 39. Rd8 {[%emt 0:00:22] Hoping for Rd7+. White is more active.} Rc4 {[%emt 0:00:39]} (39... c5 $142) 40. Rd7+ {[%emt 0:00:24]} Kf8 {[%emt 0:00:28]} 41. Bb3 {[%emt 0:33:03]} Re4 {[%emt 0:06:16] Weighted Error Value: White=0.08 (flawless) /Black=0.08 (flawless)} (41... Rc6 $16 42. Ke2 g5) 1/2-1/2

[Event "Olomouc Chess Summer-IM 2022"]
[Site "Olomouc"]
[Date "2022.08.19"]
[Round "8.12"]
[White "Nemec, Jachym"]
[Black "Shubin, Daniel"]
[Result "1-0"]
[ECO "D35"]
[WhiteElo "2341"]
[BlackElo "2206"]
[Annotator "TA"]
[PlyCount "95"]
[EventDate "2022.08.10"]
[EventCountry "CZE"]
[SourceTitle "playchess.com"]
[Source "ChessBase"]
[SourceQuality "1"]
[TimeControl "40/5400+30:1800+30"]

{[%evp 13,95,24,21,21,27,31,34,0,0,0,0,-6,0,0,10,14,14,6,2,0,2,0,0,0,0,-26,-22,-24,0,0,0,0,0,0,13,0,56,60,67,62,62,71,99,113,107,114,131,126,210,206,417,424,698,655,636,622,684,666,29984,29985,29984,660,29990,1053,877,653,653,526,526,526,12839,766,689,499,499,488,473,459,478,450,733,713,634,601]} 1. d4 {[%emt 0:00:02]} d5 {[%emt 0:00:10]} 2. c4 {[%emt 0:00:06]} e6 {[%emt 0:00:03]} 3. Nc3 {[%emt 0:00:04]} Nf6 {[%emt 0:00:05]} 4. cxd5 {[%emt 0:00:04]} exd5 {[%emt 0:00:05]} 5. Bg5 {[%emt 0:00:03][%cal Bc1g5,Bg5h4,Bh4g3][%mdl 32]} Nbd7 {[%emt 0:00:06][%cal Bb8d7,Bd7f8,Bf8e6,Be6g7,Bg7f5][%mdl 32]} 6. e3 {[%emt 0:00:04]} Be7 {[%emt 0:00:05]} 7. Bd3 {[%emt 0:00:06]} Nf8 {[%emt 0:00:10]} 8. Qc2 {[%emt 0:04:57] D35: Queen's Gambit Declined: Exchange Variation.} Ne6 {[%emt 0:00:52]} 9. Bh4 {[%emt 0:00:41]} g6 {[%emt 0:00:14]} 10. Bg3 {[%emt 0:06:47] White is slightly better.} O-O {[%emt 0:03:26]} 11. Nf3 {[%emt 0:00:59]} c6 {[%emt 0:00:36]} 12. O-O {[%emt 0:01:52]} Ng7 {[%emt 0:00:32]} 13. Rab1 {[%emt 0:12:01]} Bf5 {[%emt 0:00:51]} 14. b4 {[%emt 0:01:11]} a6 {[%emt 0:00:05] Inhibits b5.} 15. a4 {[%emt 0:07:37]} Bxd3 {[%emt 0:02:21]} 16. Qxd3 {[%emt 0:00:24]} Nf5 {[%emt 0:00:10] [#]} 17. b5 $146 {[%emt 0:06:35]} ({Predecessor:} 17. Be5 Nd6 18. Rfc1 Nc4 19. b5 axb5 20. axb5 Nd7 21. bxc6 bxc6 22. e4 Bf6 23. Bxf6 Nxf6 24. exd5 cxd5 25. Nxd5 Nxd5 26. Qxc4 {1-0 (54) Hanel,R (2330)-Schmidlechner,A (2195) Austria 1997}) 17... axb5 {[%emt 0:00:04]} 18. axb5 {[%emt 0:00:06]} Ra3 {[%emt 0:02:21][%cal Of6e4]} 19. Nd2 {[%emt 0:13:00] Inhibits Ne4.} Nxg3 {[%emt 0:36:23]} 20. hxg3 {[%emt 0:00:59]} cxb5 {[%emt 0:03:49]} 21. Rxb5 {[%emt 0:03:27]} Qc7 {[%emt 0:02:47]} 22. Ndb1 {[%emt 0:02:22]} Ra5 {[%emt 0:03:13]} 23. Rb3 {[%emt 0:06:21]} Rc8 {[%emt 0:01:16]} 24. Nd2 {[%emt 0:01:12]} Ra3 {[%emt 0:20:34] [#]} (24... Qc6 $11) 25. Nxd5 $1 $14 {[%emt 0:02:08]} Nxd5 {[%emt 0:00:03]} 26. Rxa3 {[%emt 0:00:06]} Bxa3 {[%emt 0:00:10]} 27. Qxa3 {[%emt 0:00:03]} Qc2 {[%emt 0:03:08] Inhibits Ne4. White stays focused until the end.} 28. Nf3 {[%emt 0:05:01]} b5 {[%emt 0:06:43]} 29. Qd6 {[%emt 0:03:09]} Nc3 {[%emt 0:02:13]} 30. Ne5 {[%emt 0:05:13]} Ne2+ {[%emt 0:11:13] [#]} (30... Qf5 $16 31. g4 Qe6 32. Qxe6 fxe6) 31. Kh2 $1 $18 {[%emt 0:00:09]} Qb3 $2 {[%emt 0:01:39]} (31... Qf5 32. g4 Qe6 33. Qxe6 fxe6) 32. d5 {[%emt 0:03:57][%cal Oe5f7] Black must now prevent Nxf7!} Rf8 {[%emt 0:00:29]} (32... Nc3 $142 33. Rc1 (33. Qd7 Rf8 $16) 33... Re8) 33. Re1 {[%emt 0:09:37]} Qc2 {[%emt 0:00:01][%cal Oc2f5]} 34. Nd7 {[%emt 0:00:34][%csl Gd7][%cal Rd6f8]} ({Weaker is} 34. Qe7 Qf5 $16) 34... Ra8 {[%emt 0:00:09]} 35. Qe5 {[%emt 0:00:26]} b4 {[%emt 0:00:45]} 36. Nf6+ {[%emt 0:00:46]} Kf8 {[%emt 0:00:01]} 37. d6 {[%emt 0:01:43]} (37. Ra1 $142 Qc8 {[#]} 38. Nd7+ $1 {[%mdl 512]} Kg8 39. Nb6 Rxa1 40. Nxc8 Rd1 41. d6 Rxd6 42. Nxd6) 37... b3 {[%emt 0:01:16]} 38. Ng4 {[%emt 0:01:09]} (38. Nd5 $142 Qc3 39. Nxc3 Kg8 40. Nxe2 Rd8 41. d7 Rxd7 42. Qe8+ Kg7 43. Qxd7) 38... Qc3 {[%emt 0:00:35] White is clearly winning.} 39. Rxe2 {[%emt 0:00:42]} Qxe5 {[%emt 0:00:03]} 40. Nxe5 {[%emt 0:00:05][%mdl 4096] Endgame Strongly threatening Rd2. KRN-KR} Ra2 {[%emt 0:00:04] Inhibits Rd2.} 41. Re1 {[%emt 0:30:20][%cal Be2e1,Be1b1,Bb1b3,Bb3b7][%mdl 32]} Rxf2 {[%emt 0:30:32]} 42. d7 {[%emt 0:00:16]} Rd2 {[%emt 0:00:03]} 43. Rb1 {[%emt 0:01:34]} f6 {[%emt 0:00:03]} 44. Nf3 {[%emt 0:00:12]} Rxd7 {[%emt 0:00:02]} 45. Rxb3 {[%emt 0:00:05]} h5 {[%emt 0:00:44]} 46. Kg1 {[%emt 0:01:40]} f5 {[%emt 0:00:31]} (46... Ra7 $142 47. Nd4 Kg7) 47. Kf2 {[%emt 0:00:06]} Rd6 {[%emt 0:00:18]} 48. Rb7 {[%emt 0:00:21] Weighted Error Value: White=0.33/Black=0.58} 1-0

[Event "Olomouc Chess Summer-IM 2022"]
[Site "Olomouc"]
[Date "2022.08.19"]
[Round "8.13"]
[White "Paseka, Matyas"]
[Black "Camarena Jimenez, Rufino"]
[Result "1-0"]
[ECO "C06"]
[WhiteElo "2218"]
[BlackElo "2308"]
[Annotator "TA"]
[PlyCount "127"]
[EventDate "2022.08.10"]
[EventCountry "CZE"]
[SourceTitle "playchess.com"]
[Source "ChessBase"]
[SourceQuality "1"]
[TimeControl "40/5400+30:1800+30"]

{[%evp 24,127,55,32,17,6,58,58,57,61,61,62,77,79,63,88,78,83,87,74,137,120,148,64,65,71,55,49,57,16,9,14,0,0,0,0,0,0,0,-7,0,-49,-43,-59,-73,-72,-57,-93,-58,-72,-8,-8,-8,-8,-8,-15,-8,-8,-8,-8,-8,-154,-154,-655,-602,-656,-518,-636,-573,-489,-362,-1612,-1572,-1710,-1618,-3244,-2633,-9644,-9839,-29960,-29947,-12810,-12806,-5057,8,8,8,8,8,8,29968,29970,29971,29972,29972,29973,29973,29974,29974,29975,29975,29976,29976,29977,29973,29975]} 1. e4 {[%emt 0:00:02]} e6 {[%emt 0:00:04]} 2. d4 {[%emt 0:00:09]} d5 {[%emt 0:00:04]} 3. Nd2 {[%emt 0:00:08]} Nf6 {[%emt 0:00:08]} 4. e5 {[%emt 0:00:05]} Nfd7 {[%emt 0:00:05]} 5. Bd3 {[%emt 0:00:09]} c5 {[%emt 0:00:07]} 6. c3 {[%emt 0:00:10]} Nc6 {[%emt 0:00:06]} 7. Ne2 {[%emt 0:00:07]} cxd4 {[%emt 0:00:08]} 8. cxd4 {[%emt 0:00:04]} f6 {[%emt 0:00:06]} 9. exf6 {[%emt 0:00:10]} Nxf6 {[%emt 0:00:07]} 10. Nf3 {[%emt 0:00:15]} Bd6 {[%emt 0:00:08]} 11. O-O {[%emt 0:00:15]} Qc7 {[%emt 0:00:09]} 12. Bd2 {[%emt 0:00:11]} O-O {[%emt 0:00:21]} 13. Ng3 {[%emt 0:00:36]} (13. Nc3 $5 {[%cal Rc3b5]}) 13... Bd7 {[%emt 0:01:48] C06: French Tarrasch: 3...Nf6 4 e5 Nfd7 5 Bd3 main lines.} 14. Rc1 {[%emt 0:00:52]} Bf4 {[%emt 0:11:24]} (14... Qb6 $11) 15. Re1 {[%emt 0:05:01]} Ng4 {[%emt 0:03:53] White is slightly better.} 16. Bxf4 {[%emt 0:32:22]} Qxf4 {[%emt 0:02:59] [#]} 17. h3 $146 {[%emt 0:00:34]} ({Predecessor:} 17. Bb1 g6 18. Rc2 Rae8 19. h3 Nh6 20. Ne2 Qf6 21. Nc1 Nf5 22. Nb3 Nb4 23. Rce2 {½-½ (37) Balais,A-Laurain,D (2092) France 1999}) 17... Nxf2 {[%emt 0:08:57]} 18. Kxf2 {[%emt 0:00:23] Black must now prevent Bb5.} Nxd4 {[%emt 0:00:57] [#]} 19. Be4 $1 Nc6 {[%emt 0:11:41]} (19... dxe4 $2 20. Rxe4 Qf7 21. Qxd4 $18) 20. Bb1 {[%emt 0:18:48]} ({Reject} 20. Bxd5 exd5 21. Qxd5+ Qf7 $11) 20... Qh4 {[%emt 0:03:05]} 21. Re3 {[%emt 0:04:54]} Rf6 {[%emt 0:06:45]} (21... Rae8 $142) 22. Qe1 $1 $16 {[%emt 0:03:34] And now Kg1 would win.} Nd4 {[%emt 0:05:44]} 23. Rcc3 {[%emt 0:03:41]} ({Much less strong is} 23. Kg1 Nxf3+ 24. Rxf3 Rxf3 25. gxf3 Qf4 $16) ({Better is} 23. Rc7 $1 $16 {[%cal Rc7d7]} Bc6 24. Kg1 Nxf3+ 25. Rxf3 Rxf3 26. gxf3) 23... Raf8 {[%emt 0:05:20]} 24. Kg1 {[%emt 0:03:26]} (24. Bc2 {with more complications.} Nxf3 25. Rxf3 Rxf3+ 26. gxf3 Qxh3 27. Qh1) 24... Nxf3+ {[%emt 0:00:26]} 25. Rxf3 {[%emt 0:00:04]} Rxf3 {[%emt 0:00:24]} 26. Rxf3 {[%emt 0:00:04]} (26. gxf3 $5 {[%cal Re1e5]} Qxh3 27. Qe5 $14) 26... Rxf3 {[%emt 0:00:17]} 27. gxf3 {[%emt 0:00:03] Hoping for Qe5.} Qd4+ {[%emt 0:00:27]} 28. Qf2 {[%emt 0:02:33]} Qd1+ {[%emt 0:00:09]} 29. Qf1 {[%emt 0:00:06]} Qd4+ {[%emt 0:00:09]} 30. Kh1 {[%emt 0:01:33]} Qxb2 {[%emt 0:00:25]} 31. Qd3 {[%emt 0:00:52]} g6 {[%emt 0:00:42]} 32. h4 {[%emt 0:04:53]} (32. Qc2 $11 {is more appropriate.} Qxc2 33. Bxc2) 32... Qf2 $15 {[%emt 0:01:26]} 33. Ne4 {[%emt 0:07:15]} Qxh4+ {[%emt 0:02:36]} 34. Kg2 {[%emt 0:00:04]} Bc6 $1 {[%emt 0:00:44]} 35. Nc5 {[%emt 0:04:05]} e5 {[%emt 0:02:48]} 36. Qe3 {[%emt 0:01:39] Prevents Qg5+.} Qf6 {[%emt 0:08:03]} ({Much weaker is} 36... d4 37. Qxe5 Qg4+ 38. Qg3 Bxf3+ 39. Kf2 Qxg3+ 40. Kxg3 $11) (36... Qh5 $1 $17 37. Bc2 b6) 37. Nd3 $1 $11 {[%emt 0:00:26][%csl LRa7,LRe5]} d4 {[%emt 0:05:46]} 38. Qe2 {[%emt 0:00:06]} Qg5+ {[%emt 0:00:14]} 39. Kf1 {[%emt 0:00:16]} Qf5 $36 {[%emt 0:01:58][%mdl 2048] Strongly threatening ...e4. Black fights for an advantage.} 40. Qxe5 {[%emt 0:04:09]} Qxf3+ {[%emt 0:00:22]} 41. Ke1 $1 {[%emt 0:30:06]} Qe4+ {[%emt 0:32:15]} 42. Qxe4 {[%emt 0:00:04]} (42. Kd2 $11 {remains equal.}) 42... Bxe4 $17 {[%emt 0:00:05]} 43. Bc2 {[%emt 0:00:25]} (43. Kd2 $17) 43... Bxd3 $19 {[%emt 0:00:36]} 44. Bxd3 {[%emt 0:00:04][%mdl 4096] Endgame KB-KP} Kg7 {[%emt 0:01:17]} 45. Be4 {[%emt 0:03:23]} b6 {[%emt 0:00:00]} 46. Kd2 {[%emt 0:00:00]} Kf6 {[%emt 0:00:00]} 47. Kd3 $2 {[%emt 0:00:00]} (47. a4 Ke5 48. Bd3) 47... Ke5 $1 {[%emt 0:00:12]} 48. a4 {[%emt 0:00:00]} a6 {[%emt 0:02:41]} 49. Bb7 {[%emt 0:00:00]} g5 {[%emt 0:00:07]} 50. Bxa6 {[%emt 0:00:00]} g4 {[%emt 0:00:03]} 51. Bc8 {[%emt 0:00:00]} h5 {[%emt 0:00:13]} 52. Bd7 {[%emt 0:00:00]} Kf4 {[%emt 0:01:02]} 53. Kxd4 {[%emt 0:00:00] KB-K3P} g3 $2 {[%emt 0:00:07]} (53... h4 $19 {( -> ...g3)} 54. Bc6 h3) 54. Bc6 $1 $11 {[%emt 0:00:00]} h4 {[%emt 0:00:09]} (54... Kg4 $5 55. Bg2 h4 $16) 55. Bg2 {[%emt 0:00:00]} Kg4 {[%emt 0:00:20] Threatens to win with ...h3.} 56. Ke3 {[%emt 0:00:00]} h3 $2 {[%emt 0:00:10][%mdl 8192]} (56... Kf5 $11) 57. Bc6 {[%emt 0:00:00] White mates.} Kh4 {[%emt 0:15:46]} 58. Kf3 {[%emt 0:00:00]} h2 {[%emt 0:01:49]} 59. Kg2 {[%emt 0:00:00]} Kg4 {[%emt 0:00:05]} 60. Bb7 $1 {[%emt 0:00:00]} Kf4 {[%emt 0:01:13] [#]} 61. Kh3 $1 {[%emt 0:00:00]} Ke5 {[%emt 0:01:07]} 62. Kxg3 {[%emt 0:00:00]} Kd6 {[%emt 0:00:26]} 63. Kxh2 {[%emt 0:00:00]} Kc5 {[%emt 0:00:16] [#]} 64. Ba6 $1 {[%emt 0:00:00] Weighted Error Value: White=0.75/Black=0.35} 1-0

[Event "Olomouc Chess Summer-IM 2022"]
[Site "Olomouc"]
[Date "2022.08.19"]
[Round "8.14"]
[White "Saypuri Srithan"]
[Black "Wiley, Tom E"]
[Result "1/2-1/2"]
[ECO "C04"]
[WhiteElo "1923"]
[BlackElo "2169"]
[Annotator "TA"]
[PlyCount "122"]
[EventDate "2022.08.10"]
[EventCountry "CZE"]
[SourceTitle "playchess.com"]
[Source "ChessBase"]
[SourceQuality "1"]
[TimeControl "40/5400+30:1800+30"]

{[%evp 13,122,30,28,-16,0,-32,0,-11,-10,-8,-25,-34,-25,-32,-33,-36,-33,-35,-34,-46,-24,-24,-23,-18,-31,-61,-63,-75,-56,-140,-131,-165,-161,-198,-199,-204,-118,-138,-91,-119,-94,-78,-31,-120,-118,-122,-124,-109,-129,-127,-57,-54,-52,-52,-52,-59,-59,-59,-52,-66,-59,-66,-59,-59,-59,-59,-52,-52,-52,-52,-52,-54,-54,-59,-54,-59,-59,-59,-59,-59,-59,-59,-59,-59,-59,-59,-59,-59,-59,-59,-59,-59,-59,-87,-87,-87,-87,-87,-87,-87,-87,-87,-87,-87,-87,-87,-87,-87,-87,-87,0]} 1. e4 {[%emt 0:03:03]} e6 {[%emt 0:00:06]} 2. d4 {[%emt 0:00:10]} d5 {[%emt 0:00:05]} 3. Nd2 {[%emt 0:00:04]} Nc6 {[%emt 0:00:08]} 4. Ngf3 {[%emt 0:05:16]} Nf6 {[%emt 0:00:19]} 5. e5 {[%emt 0:01:28]} Nd7 {[%emt 0:00:10]} 6. Bb5 {[%emt 0:12:05]} a6 {[%emt 0:00:47]} 7. Bxc6 {[%emt 0:00:16]} bxc6 {[%emt 0:00:04][%cal Bb7c6,Bc6c5,Bc5c4][%mdl 32]} 8. O-O {[%emt 0:00:05] C04: French Tarrasch: 3...Nc6.} c5 {[%emt 0:03:42]} 9. c3 {[%emt 0:00:29] 9.dxc5 is not played anymore.} Be7 {[%emt 0:02:26]} 10. Nb3 {[%emt 0:04:29] The position is equal.} a5 {[%emt 0:07:40]} 11. Be3 {[%emt 0:02:44][%cal Rb3c5]} (11. Nxc5 {with more complications.} Nxc5 12. dxc5 Bxc5 13. Qa4+) 11... c4 {[%emt 0:05:12] [#]} 12. Nbd2 $146 {[%emt 0:00:21]} ({Predecessor:} 12. Nc5 O-O 13. Nxd7 Bxd7 14. Qd2 Rb8 15. Bg5 f6 16. exf6 gxf6 17. Bh6 Rf7 18. Rae1 {1-0 (39) Pitra,A (2303)-Singh,G (2295) Kuala Lumpur 2011}) 12... Nb6 {[%emt 0:03:14]} 13. b3 {[%emt 0:07:35]} Ba6 {[%emt 0:01:20] ...cxb3 is the strong threat.} 14. Re1 {[%emt 0:00:41]} O-O {[%emt 0:00:51]} 15. Qc2 {[%emt 0:00:54]} h6 {[%emt 0:08:01]} 16. bxc4 {[%emt 0:05:36]} Nxc4 {[%emt 0:10:45]} 17. Nxc4 {[%emt 0:00:17]} Bxc4 18. Nd2 {[%emt 0:01:06]} Ba6 {[%emt 0:05:49][%cal Bc4a6,Ba6d3,Bd3g6][%mdl 32]} 19. Qa4 {[%emt 0:15:32]} Bd3 {[%emt 0:02:27]} 20. a3 {[%emt 0:09:54]} Qe8 {[%emt 0:02:10]} 21. Qd1 {[%emt 0:01:40]} (21. Qxe8 $15 Rfxe8 22. c4) 21... a4 $17 {[%emt 0:15:04]} 22. Bf4 {[%emt 0:04:09]} Qb5 {[%emt 0:06:50]} 23. Re3 {[%emt 0:02:00]} Bg6 {[%emt 0:00:41] A strong pair of Bishops.} 24. c4 {[%emt 0:03:33]} dxc4 {[%emt 0:01:05]} (24... Qb2 $1 $19 {[%cal Rb2d4]} 25. cxd5 Qxd4) 25. Rc3 {[%emt 0:00:02]} Rfd8 {[%emt 0:07:21]} (25... Bd3 $142 26. Qg4 Kh8) 26. Nxc4 {[%emt 0:01:58]} Rd7 {[%emt 0:00:42] Threatens to win with ...Rad8.} 27. Be3 {[%emt 0:07:01]} Rad8 {[%emt 0:07:39]} (27... c5 $1 $17 {[%cal Rc5d4] White must now prevent ...cxd4.} 28. Nd6 Bxd6 29. exd6 c4) 28. Qf1 {[%emt 0:00:29] [#]} (28. Qe1 $15) 28... c5 $1 {[%emt 0:05:09]} 29. Nd6 {[%emt 0:02:09]} Qxf1+ {[%emt 0:00:12]} 30. Rxf1 {[%emt 0:00:07]} Bxd6 {[%emt 0:00:42]} 31. exd6 {[%emt 0:00:04] [#]} cxd4 {[%emt 0:00:06]} ({Reject} 31... Rxd6 $6 32. Rxc5 Bd3 33. Rfc1 $11) ({Black should try} 31... c4 $1 $17 32. Rfc1 Bd3) 32. Bxd4 $15 {[%emt 0:00:04]} Rxd6 {[%emt 0:00:04]} 33. Bc5 {[%emt 0:00:03]} Rc6 {[%emt 0:01:40]} 34. Bb4 {[%emt 0:00:39]} Rxc3 {[%emt 0:00:36]} 35. Bxc3 {[%emt 0:00:04][%mdl 4096] Endgame KRB-KRB} Bc2 {[%emt 0:00:51]} 36. h3 {[%emt 0:00:46]} Bb3 {[%emt 0:00:43]} 37. Rc1 {[%emt 0:00:44]} f6 {[%emt 0:00:17]} 38. Ba5 {[%emt 0:00:08]} Rd5 {[%emt 0:00:24]} 39. Rc8+ {[%emt 0:01:10]} Kf7 {[%emt 0:01:03]} 40. Rc7+ {[%emt 0:00:41]} Kg6 {[%emt 0:00:10]} 41. Bb4 {[%emt 0:30:02]} Rd8 {[%emt 0:30:40] Inhibits Bf8.} 42. Kh2 {[%emt 0:03:48]} e5 {[%emt 0:01:48]} 43. Ba5 {[%emt 0:01:24][%cal Oc7g7]} Rg8 {[%emt 0:01:09]} 44. Re7 {[%emt 0:01:36]} Kf5 {[%emt 0:00:00]} 45. Rd7 {[%emt 0:00:00]} h5 {[%emt 0:00:00]} 46. Rd8 {[%emt 0:00:00]} Rxd8 {[%emt 0:00:00]} 47. Bxd8 {[%emt 0:00:00] KB-KB} h4 {[%emt 0:00:00]} 48. f3 {[%emt 0:00:00]} Bd5 {[%emt 0:00:00]} 49. Ba5 {[%emt 0:00:00]} g5 {[%emt 0:00:00]} 50. Be1 {[%emt 0:00:00]} Kg6 {[%emt 0:00:00]} 51. Kg1 {[%emt 0:00:00]} e4 {[%emt 0:00:00]} 52. fxe4 {[%emt 0:00:00]} Bxe4 {[%emt 0:00:00]} 53. g3 {[%emt 0:00:00]} hxg3 {[%emt 0:00:00] Black is better.} 54. Bxg3 {[%emt 0:00:00]} Kh5 {[%emt 0:00:00]} 55. Be1 {[%emt 0:00:00]} f5 {[%emt 0:00:00][%cal Bf6f5,Bf5f4][%mdl 32]} 56. Kh2 {[%emt 0:00:00]} f4 {[%emt 0:00:00]} 57. Bd2 {[%emt 0:00:00]} Bd5 {[%emt 0:00:00]} 58. Bc1 {[%emt 0:00:00]} Bc6 {[%emt 0:00:00]} 59. Bd2 {[%emt 0:00:00]} Bd7 {[%emt 0:00:00]} 60. Kg2 {[%emt 0:00:00]} Be6 {[%emt 0:00:00]} 61. Kh2 {[%emt 0:00:00]} Bd5 {[%emt 0:00:00] White happily takes the draw.  Weighted Error Value: White=0.10 (very precise) /Black=0.07 (flawless)} (61... Bc4 $17 62. Kg2 Bd5+ 63. Kg1 Bb7) 1/2-1/2